bitfinex/quotes_SOLUSD_20260302
["timestamp","ask_amount","ask_price","bid_price","bid_amount"]
[1772494336516,4.82477569,86.835,86.779,1.55029196]
[1772494336722,1.63172401,86.832,86.779,1.55029196]
[1772494337410,1.63172401,86.832,86.748,46.11035042]
[1772494337411,1.63172401,86.832,86.771,1.63366282]
[1772494337619,4.82477569,86.823,86.771,1.63366282]
[1772494337834,1.69576575,86.812,86.762,1.59816577]
[1772494339238,1.69576575,86.809,86.762,1.59816577]
[1772494340014,1.69576575,86.807,86.753,11.52695196]
[1772494340227,1.69576575,86.803,86.747,1.59816577]
[1772494342440,1.69576575,86.801,86.749,1.59816577]
[1772494344537,11.5195429,86.809,86.751,1.59816577]
[1772494344740,1.69576575,86.808,86.751,1.59816577]
[1772494347240,1.69576575,86.806,86.753,1.59816577]
[1772494349352,11.52007372,86.805,86.755,1.59816577]
[1772494349895,1.69576575,86.804,86.755,1.59816577]
[1772494351342,1.69576575,86.802,86.757,1.59816577]
[1772494353558,1.69576575,86.8,86.757,1.59816577]
[1772494353764,1.69576575,86.8,86.758,11.52631457]
[1772494353942,1.69576575,86.8,86.759,1.59816577]
[1772494354444,10.93719793,86.78,86.759,1.59816577]
[1772494354650,10.93719793,86.79,86.759,1.59816577]
[1772494357063,10.93719793,86.79,86.761,1.59816577]
[1772494357252,11.52219751,86.789,86.761,1.59816577]
[1772494359065,10.93719793,86.79,86.763,1.59816577]
[1772494360074,10.93719793,86.8,86.763,1.59816577]
[1772494360288,11.52087005,86.799,86.763,1.59816577]
[1772494361351,11.52087005,86.799,86.765,1.59816577]
[1772494362254,10.93719793,86.8,86.765,1.59816577]
[1772494362461,22.45800959,86.8,86.765,1.59816577]
[1772494363493,1.69576575,86.808,86.767,1.59816577]
[1772494363772,10.93719793,86.8,86.767,1.59816577]
[1772494364483,10.93172465,86.8,86.767,1.59816577]
[1772494365565,28.7976883,86.813,86.769,1.59816577]
[1772494365566,10.93172465,86.79,86.769,1.59816577]
[1772494366264,1.69576575,86.812,86.77,1.59816577]
[1772494366461,46.05261712,86.858,86.781,1.59816577]
[1772494366462,1.69576575,86.819,86.781,1.59816577]
[1772494367665,1.69510646,86.818,86.783,1.63248492]
[1772494369056,10.93172465,86.81,86.783,1.63248492]
[1772494369256,1.69510646,86.809,86.783,1.63248492]
[1772494369575,40.31375713,86.819,86.773,28.8107239]
[1772494369576,12.62683111,86.8,86.778,1.63248492]
[1772494370375,11.51984188,86.807,86.778,1.63248492]
[1772494370376,10.93172465,86.79,86.778,1.63248492]
[1772494370576,1.69510646,86.799,86.778,1.63248492]
[1772494371073,10.93172465,86.81,86.778,1.63248492]
[1772494371478,11.5171548,86.827,86.778,1.63248492]
[1772494371677,10.93172465,86.82,86.78,1.63248492]
[1772494372572,10.93172465,86.8,86.78,1.63248492]
[1772494373383,1.69510646,86.805,86.78,1.63248492]
[1772494373683,46.25149563,86.86,86.801,1.63248492]
[1772494373684,1.69510646,86.849,86.801,1.63248492]
[1772494373887,1.69510646,86.839,86.801,1.63248492]
[1772494374186,10.93172465,86.84,86.801,1.63248492]
[1772494374389,10.93172465,86.83,86.801,1.63248492]
[1772494374683,1.69510646,86.835,86.801,1.63248492]
[1772494374889,10.93172465,86.84,86.801,1.63248492]
[1772494375590,10.93172465,86.84,86.802,40.32165156]
[1772494375884,1.69510646,86.839,86.803,1.63248492]
[1772494376088,1.69510646,86.829,86.802,40.32165156]
[1772494376282,1.69510646,86.857,86.803,1.63248492]
[1772494376482,10.93172465,86.84,86.803,1.63248492]
[1772494376783,1.69510646,86.843,86.803,1.63248492]
[1772494377291,10.93172465,86.85,86.811,1.63248492]
[1772494377478,1.69510646,86.849,86.811,1.63248492]
[1772494377886,1.69510646,86.849,86.813,1.63248492]
[1772494378790,10.93172465,86.84,86.813,1.63248492]
[1772494379789,1.69510646,86.843,86.813,1.63248492]
[1772494379979,1.69510646,86.843,86.815,1.63248492]
[1772494380190,22.44590106,86.85,86.815,1.63248492]
[1772494380191,10.93172465,86.85,86.815,1.63248492]
[1772494380382,10.93172465,86.85,86.814,40.31607804]
[1772494380383,1.69510646,86.858,86.821,1.63248492]
[1772494380694,1.69510646,86.858,86.831,1.63248492]
[1772494381112,1.69510646,86.887,86.851,1.63248492]
[1772494381572,10.93172465,86.89,86.851,1.63248492]
[1772494381890,11.50893668,86.889,86.852,11.51383963]
[1772494382190,1.69510646,86.888,86.853,1.63248492]
[1772494382994,1.69510646,86.888,86.861,1.63248492]
[1772494383174,11.13172465,86.9,86.861,1.63248492]
[1772494383175,1.69510646,86.894,86.861,1.63248492]
[1772494384086,1.69510646,86.894,86.863,1.63248492]
[1772494384287,1.69510646,86.892,86.863,1.63248492]
[1772494384484,1.69510646,86.889,86.856,11.51318406]
[1772494384694,1.69510646,86.889,86.861,1.63248492]
[1772494384992,1.69510646,86.879,86.852,1.63248492]
[1772494385499,1.69510646,86.886,86.852,1.63248492]
[1772494385685,1.69510646,86.897,86.852,1.63248492]
[1772494385885,1.69510646,86.889,86.852,1.63248492]
[1772494386394,11.50906914,86.888,86.854,1.63248492]
[1772494386599,1.69510646,86.879,86.853,40.29797473]
[1772494386780,1.69510646,86.879,86.854,1.63248492]
[1772494387379,1.69510646,86.886,86.854,1.63248492]
[1772494387791,1.69510646,86.898,86.854,1.63248492]
[1772494387978,1.69510646,86.889,86.854,1.63248492]
[1772494390482,1.69510646,86.889,86.856,1.63248492]
[1772494390687,0.2,86.9,86.855,40.29704679]
[1772494390688,12.82683111,86.9,86.861,1.63248492]
[1772494391099,1.89510646,86.9,86.861,1.63248492]
[1772494391299,11.13172465,86.9,86.861,1.63248492]
[1772494391603,1.69510646,86.899,86.861,1.63248492]
[1772494392300,11.13172465,86.9,86.861,1.63248492]
[1772494392301,0.2,86.9,86.861,1.63248492]
[1772494392501,0.2,86.9,86.862,1.63248492]
[1772494392700,0.2,86.9,86.863,40.29333547]
[1772494393002,0.2,86.9,86.871,1.63248492]
[1772494393406,0.2,86.9,86.881,1.63248492]
[1772494394997,11.5052551,86.917,86.88,10.93172465]
[1772494394998,1.69510646,86.918,86.884,1.63248492]
[1772494395194,1.69510646,86.918,86.891,1.63248492]
[1772494395787,11.13172465,86.92,86.882,40.28452383]
[1772494395788,1.69510646,86.909,86.883,1.63248492]
[1772494397602,1.84358637,86.92,86.885,1.74893955]
[1772494397909,12.77531102,86.92,86.885,1.74893955]
[1772494398087,1.84358637,86.92,86.885,1.74893955]
[1772494399292,1.64358637,86.934,86.901,1.74893955]
[1772494399608,1.64358637,86.934,86.903,1.74893955]
[1772494400510,11.13172465,86.94,86.903,1.74893955]
[1772494400511,1.64358637,86.932,86.903,1.74893955]
[1772494400910,11.50311159,86.933,86.866,1.74893955]
[1772494400911,0.0809967,86.909,86.866,1.74893955]
[1772494401087,10.93172465,86.88,86.866,13.26087782]
[1772494401289,10.93172465,86.88,86.856,1.74893955]
[1772494402090,10.93172465,86.88,86.845,1.74893955]
[1772494402091,10.93172465,86.87,86.845,1.74893955]
[1772494402712,10.93172465,86.87,86.835,28.78994553]
[1772494402713,10.93172465,86.87,86.846,13.26357465]
[1772494403908,10.93172465,86.87,86.846,1.74893955]
[1772494404117,11.51158641,86.869,86.837,1.74893955]
[1772494404416,10.93172465,86.86,86.834,1.74893955]
[1772494405918,10.93172465,86.86,86.795,3.69383402]
[1772494405919,10.93172465,86.88,86.836,1.74893955]
[1772494406212,10.93172465,86.88,86.835,40.30632809]
[1772494406213,10.93172465,86.88,86.841,1.74893955]
[1772494407415,10.93172465,86.89,86.841,1.74893955]
[1772494408013,10.93172465,86.88,86.843,1.74893955]
[1772494408599,4.07383468,86.88,86.843,1.74893955]
[1772494409204,0.12419046,86.869,86.835,1.74893955]
[1772494409404,0.12419046,86.859,86.811,1.74893955]
[1772494409617,4.07383468,86.86,86.821,1.74893955]
[1772494410205,4.82477569,86.879,86.808,11.51966437]
[1772494410206,0.12873448,86.839,86.808,11.51966437]
[1772494410396,0.12873448,86.839,86.808,13.26860392]
[1772494410595,0.12873448,86.839,86.808,11.51966437]
[1772494410795,0.12873448,86.839,86.809,1.74893955]
[1772494410997,0.13323227,86.829,86.791,11.52193199]
[1772494411196,4.07383468,86.82,86.791,11.52193199]
[1772494411625,4.07383468,86.82,86.792,1.74893955]
[1772494412598,10.92641119,86.82,86.793,11.52166649]
[1772494413528,103.61620557,86.859,86.793,11.52166649]
[1772494413529,10.92641119,86.84,86.801,1.74893955]
[1772494414013,11.51556328,86.839,86.801,1.74893955]
[1772494414414,11.51291173,86.859,86.821,1.74893955]
[1772494414615,11.65842869,86.866,86.831,1.74893955]
[1772494415119,10.92641119,86.86,86.831,1.74893955]
[1772494416116,0.15069988,86.867,86.831,1.74893955]
[1772494416421,10.92641119,86.87,86.841,1.74893955]
[1772494416617,11.51158641,86.869,86.843,1.74893955]
[1772494417203,11.51158641,86.869,86.836,11.51590091]
[1772494417429,11.51158641,86.869,86.837,1.74893955]
[1772494417605,10.92641119,86.86,86.837,1.74893955]
[1772494417910,0.15908484,86.859,86.829,11.51676673]
[1772494419414,11.67199657,86.859,86.829,11.51676673]
[1772494419819,10.92641119,86.85,86.829,11.51676673]
[1772494420210,11.67199657,86.859,86.829,11.51676673]
[1772494420716,11.67199657,86.859,86.829,13.26570628]
[1772494421823,11.67199657,86.859,86.83,12.67535074]
[1772494422825,10.92641119,86.86,86.813,1.74893955]
[1772494423026,0.18250603,86.868,86.831,1.74893955]
[1772494423609,0.18250603,86.868,86.802,46.08178825]
[1772494423610,0.18250603,86.839,86.777,1.74893955]
[1772494423812,0.18250603,86.839,86.77,0.1]
[1772494423813,10.92641119,86.81,86.779,1.74893955]
[1772494424026,4.82477569,86.868,86.778,11.52365807]
[1772494424027,0.18614696,86.837,86.791,1.74893955]
[1772494424329,0.18614696,86.829,86.791,1.74893955]
[1772494424630,10.92641119,86.82,86.791,1.74893955]
[1772494426626,11.51821605,86.819,86.791,1.74893955]
[1772494427934,0.20036026,86.809,86.78,1.77497646]
[1772494428434,11.51821605,86.819,86.782,1.77497646]
[1772494428744,1.15203391,86.84,86.782,1.77497646]
[1772494428745,10.92679399,86.84,86.801,1.77497646]
[1772494429231,11.72159523,86.848,86.811,1.77497646]
[1772494429532,1.15203391,86.847,86.811,1.77497646]
[1772494429730,10.92679399,86.84,86.811,1.77497646]
[1772494429932,1.15203391,86.847,86.811,1.77497646]
[1772494430235,0.21058121,86.846,86.811,1.77497646]
[1772494430635,1.15203391,86.845,86.811,1.77497646]
[1772494431943,10.92679399,86.84,86.811,1.77497646]
[1772494432738,10.92679399,86.84,86.813,1.77497646]
[1772494433422,1.15203391,86.839,86.813,1.77497646]
[1772494433746,40.30215098,86.844,86.813,1.77497646]
[1772494433747,11.51490028,86.844,86.813,1.77497646]
[1772494433952,11.51436993,86.848,86.815,1.77497646]
[1772494434152,0.22044816,86.857,86.821,1.77497646]
[1772494434153,11.51380699,86.853,86.821,1.77497646]
[1772494434737,1.37566572,86.856,86.822,1.77497646]
[1772494435237,0.22679621,86.855,86.822,1.77497646]
[1772494435447,10.92679399,86.85,86.822,1.77497646]
[1772494435740,0.22679621,86.851,86.822,1.77497646]
[1772494435922,11.51304427,86.858,86.822,1.77497646]
[1772494436120,0.22992276,86.856,86.822,1.77497646]
[1772494436430,0.22992276,86.849,86.814,1.77497646]
[1772494437424,1.15203391,86.857,86.821,1.77497646]
[1772494438240,11.51330938,86.856,86.821,1.77497646]
[1772494438543,1.15203391,86.855,86.821,1.77497646]
[1772494438749,1.15203391,86.855,86.823,1.77497646]
[1772494440124,1.15203391,86.855,86.801,1.15206046]
[1772494440125,4.0759934,86.83,86.751,1.85828033]
[1772494440326,4.0759934,86.83,86.76,1.85828033]
[1772494440327,4.0759934,86.79,86.76,1.85828033]
[1772494440641,4.0759934,86.8,86.762,1.85828033]
[1772494441745,4.0759934,86.79,86.762,1.85828033]
[1772494442123,11.52217603,86.79,86.762,1.85828033]
[1772494442328,40.32733791,86.79,86.762,1.85828033]
[1772494442527,10.93747632,86.78,86.744,1.85828033]
[1772494443224,11.52217603,86.79,86.751,1.85828033]
[1772494443449,11.52217603,86.79,86.76,10.93747632]
[1772494443649,11.52217603,86.79,86.761,1.85828033]
[1772494444039,11.52138562,86.796,86.761,1.85828033]
[1772494444240,11.52138562,86.796,86.762,11.52578317]
[1772494444547,11.51795072,86.821,86.791,1.85828033]
[1772494444755,10.93747632,86.84,86.801,1.85828033]
[1772494444955,1.43944541,86.839,86.801,1.85828033]
[1772494445149,40.29704679,86.855,86.811,1.85828033]
[1772494445150,1.43924652,86.851,86.811,1.85828033]
[1772494445337,1.43924652,86.851,86.81,10.93747632]
[1772494445338,1.43924652,86.851,86.821,1.85828033]
[1772494445537,40.29704679,86.855,86.821,1.85828033]
[1772494445941,6.2639725,86.854,86.801,1.85828033]
[1772494446150,10.93747632,86.84,86.801,1.85828033]
[1772494446335,10.93747632,86.84,86.8,10.93747632]
[1772494446336,11.51423735,86.849,86.812,1.85828033]
[1772494446853,11.51423735,86.849,86.811,11.51927751]
[1772494446854,28.76936178,86.898,86.841,1.85828033]
[1772494447039,29.6554229,86.898,86.86,10.93747632]
[1772494447233,0.02122984,86.897,86.857,1.85828033]
[1772494447435,0.88606112,86.896,86.86,10.93747632]
[1772494447953,0.86483128,86.906,86.871,1.85828033]
[1772494448151,10.93747632,86.9,86.861,1.85828033]
[1772494448450,11.5318279,86.898,86.858,1.85828033]
[1772494448831,46.02005849,86.919,86.823,1.15176854]
[1772494448832,0.86483128,86.906,86.871,1.85828033]
[1772494449043,11.50594669,86.912,86.881,1.85828033]
[1772494449535,11.50594669,86.912,86.881,2.5e-06]
[1772494449738,1.79073162,86.909,86.87,10.93747632]
[1772494449938,12.72820794,86.9,86.86,10.93747632]
[1772494450142,10.93747632,86.9,86.86,10.93747632]
[1772494450352,0.86483128,86.908,86.87,10.93747632]
[1772494450553,11.50642058,86.908,86.871,11.51132138]
[1772494450744,11.50642058,86.908,86.88,10.93747632]
[1772494450935,11.50642058,86.908,86.871,11.51132138]
[1772494451255,0.86483128,86.907,86.87,10.93747632]
[1772494451652,0.86483128,86.907,86.871,1.77497646]
[1772494451953,1.79073162,86.906,86.871,1.77497646]
[1772494452362,11.50642058,86.908,86.881,1.77497646]
[1772494452554,11.50562625,86.914,86.881,1.77497646]
[1772494452758,11.50562625,86.914,86.883,1.77497646]
[1772494453056,1.79073162,86.909,86.874,11.51092386]
[1772494453358,1.79073162,86.909,86.88,10.93747632]
[1772494453562,2.6555629,86.919,86.881,1.77497646]
[1772494453755,10.93747632,86.91,86.881,1.77497646]
[1772494453956,1.79073162,86.917,86.881,1.77497646]
[1772494453957,0.86483128,86.916,86.881,1.77497646]
[1772494454640,28.75911959,86.929,86.891,1.77497646]
[1772494454961,0.86483128,86.929,86.891,1.77497646]
[1772494455362,11.50417026,86.925,86.891,1.77497646]
[1772494455966,1.79073162,86.909,86.872,1.77497646]
[1772494456142,10.93747632,86.9,86.872,1.77497646]
[1772494456860,11.50761228,86.899,86.872,1.77497646]
[1772494457363,0.86483128,86.911,86.881,1.7049379]
[1772494457538,11.50496439,86.919,86.881,1.7049379]
[1772494458856,11.50431737,86.924,86.891,1.72710494]
[1772494459053,11.50431737,86.924,86.882,11.50986395]
[1772494459054,0.2,86.93,86.901,1.72710494]
[1772494459946,11.13747632,86.93,86.901,1.72710494]
[1772494460146,1.8535165,86.929,86.901,1.72710494]
[1772494460346,1.8535165,86.929,86.89,10.93747632]
[1772494460347,10.93747632,86.92,86.881,1.72710494]
[1772494460648,1.8535165,86.924,86.891,1.72710494]
[1772494460649,0.86483128,86.924,86.891,1.72710494]
[1772494460851,11.5036409,86.929,86.901,1.72710494]
[1772494461074,11.5036409,86.929,86.903,1.72710494]
[1772494461261,0.2,86.93,86.903,1.72710494]
[1772494461753,11.70358383,86.93,86.903,1.72710494]
[1772494462345,0.2,86.93,86.903,1.72710494]
[1772494462543,0.2,86.93,86.921,1.72710494]
[1772494462749,0.2,86.94,86.921,1.72710494]
[1772494465254,0.2,86.94,86.904,1.15069501]
[1772494465255,1.8535165,86.938,86.904,1.15069501]
[1772494465448,1.8535165,86.938,86.747,25.68702203]
[1772494465449,10.93747632,86.89,86.852,1.72710494]
[1772494465851,10.93747632,86.88,86.852,1.72710494]
[1772494467074,11.51026139,86.879,86.852,1.72710494]
[1772494468948,11.51026139,86.879,86.853,1.72710494]
[1772494470955,1.8535165,86.878,86.831,0.86281734]
[1772494471163,1.8535165,86.878,86.77,61.6]
[1772494471164,10.93747632,86.87,86.83,10.93747632]
[1772494471374,10.93747632,86.87,86.84,10.93747632]
[1772494471872,11.51026139,86.879,86.84,10.93747632]
[1772494473170,11.51026139,86.879,86.843,1.72710494]
[1772494474972,0.5,86.88,86.843,1.72710494]
[1772494475273,0.5,86.88,86.842,11.51516547]
[1772494475274,0.5,86.88,86.861,1.72710494]
[1772494475650,22.44629382,86.89,86.861,1.72710494]
[1772494475859,11.5088175,86.89,86.861,1.72710494]
[1772494476070,10.93747632,86.88,86.853,1.72710494]
[1772494476381,1.8535165,86.889,86.853,1.72710494]
[1772494476680,10.93747632,86.88,86.853,1.72710494]
[1772494476871,1.8535165,86.859,86.813,1.72710494]
[1772494477068,10.93747632,86.84,86.814,1.72710494]
[1772494477468,10.93747632,86.85,86.816,1.72710494]
[1772494477683,10.93747632,86.85,86.815,11.51874676]
[1772494477684,10.93747632,86.86,86.821,1.72710494]
[1772494477858,10.93747632,86.86,86.815,40.31561366]
[1772494477859,11.51170201,86.869,86.831,1.72710494]
[1772494478560,11.51170201,86.869,86.841,1.72710494]
[1772494479168,10.93747632,86.87,86.843,1.72710494]
[1772494479485,22.44904115,86.87,86.843,1.72710494]
[1772494479780,11.51089025,86.875,86.843,1.72710494]
[1772494479979,10.93747632,86.87,86.843,1.72710494]
[1772494480886,28.77502551,86.881,86.845,1.72710494]
[1772494481074,12.79099282,86.88,86.845,1.72710494]
[1772494481275,10.93747632,86.87,86.845,1.72710494]
[1772494483265,1.8535165,86.859,86.832,1.72710494]
[1772494483470,10.93747632,86.87,86.832,1.72710494]
[1772494483672,11.51158641,86.869,86.832,1.72710494]
[1772494484986,1.43846808,86.898,86.841,1.72710494]
[1772494484987,11.51108062,86.873,86.841,1.72710494]
[1772494485387,11.51052637,86.877,86.841,11.5152619]
[1772494485685,1.8535165,86.859,86.827,1.72710494]
[1772494485887,10.93747632,86.86,86.829,1.72710494]
[1772494486070,10.93747632,86.85,86.829,1.72710494]
[1772494486466,10.93747632,86.86,86.829,1.72710494]
[1772494487080,1.8535165,86.868,86.831,1.72710494]
[1772494487270,10.93747632,86.87,86.831,1.72710494]
[1772494487688,11.51158641,86.869,86.833,1.83758366]
[1772494488191,11.51158641,86.869,86.825,1.83758366]
[1772494488192,1.82453442,86.859,86.825,1.83758366]
[1772494488596,10.91646858,86.86,86.825,1.83758366]
[1772494489797,10.91646858,86.86,86.793,0.86367285]
[1772494489798,11.51026139,86.879,86.841,1.83758366]
[1772494490094,1.82453442,86.878,86.841,1.83758366]
[1772494490289,1.82453442,86.878,86.826,40.31050606]
[1772494490290,11.51026139,86.879,86.851,1.83758366]
[1772494490676,1.82453442,86.878,86.851,1.83758366]
[1772494490877,11.51026139,86.879,86.843,1.83758366]
[1772494490878,1.82453442,86.869,86.843,1.83758366]
[1772494491686,11.51171892,86.868,86.843,1.83758366]
[1772494491995,1.82453442,86.867,86.832,1.83758366]
[1772494493190,1.82453442,86.867,86.831,11.51662424]
[1772494493191,11.51171892,86.868,86.841,1.83758366]
[1772494493888,11.51117056,86.873,86.843,1.83758366]
[1772494494985,11.51117056,86.873,86.845,1.83758366]
[1772494495674,11.51026139,86.879,86.85,10.91646858]
[1772494495884,11.50893668,86.889,86.851,1.83758366]
[1772494496399,11.50867178,86.891,86.861,1.83758366]
[1772494496774,13.3332062,86.891,86.861,1.83758366]
[1772494496982,10.91646858,86.89,86.861,1.83758366]
[1772494497387,1.82453442,86.889,86.861,1.83758366]
[1772494498000,11.50906914,86.888,86.861,1.83758366]
[1772494498297,13.33360356,86.888,86.861,1.83758366]
[1772494498799,1.82453442,86.879,86.84,10.91646858]
[1772494499101,1.82453442,86.879,86.841,1.83758366]
[1772494500108,11.51039388,86.878,86.843,1.83758366]
[1772494500507,1.82453442,86.877,86.843,1.83758366]
[1772494500809,1.82453442,86.875,86.843,1.83758366]
[1772494501890,1.82453442,86.875,86.84,10.91646858]
[1772494502088,1.82453442,86.867,86.835,1.83758366]
[1772494503098,1.82453442,86.867,86.837,1.83758366]
[1772494503403,28.77617786,86.878,86.841,1.83758366]
[1772494503404,11.51110346,86.873,86.841,1.83758366]
[1772494503605,11.50986395,86.882,86.851,1.83758366]
[1772494504599,11.50986395,86.882,86.853,1.83758366]
[1772494504903,10.91646858,86.89,86.852,11.51383963]
[1772494504904,13.3321467,86.899,86.861,1.83758366]
[1772494505104,10.91646858,86.88,86.852,1.83758366]
[1772494505323,1.82453442,86.869,86.83,12.75405224]
[1772494505604,1.82453442,86.869,86.83,1.83758366]
[1772494506107,1.82453442,86.869,86.832,1.83758366]
[1772494506311,1.82453442,86.868,86.832,1.83758366]
[1772494506805,11.51185145,86.867,86.834,1.83758366]
[1772494507706,40.29148007,86.867,86.834,1.83758366]
[1772494508801,11.51185145,86.867,86.836,1.83758366]
[1772494509002,1.82453442,86.866,86.83,10.91646858]
[1772494509204,1.82453442,86.866,86.831,1.83758366]
[1772494509418,1.82453442,86.866,86.832,1.83758366]
[1772494509789,1.82453442,86.865,86.832,1.83758366]
[1772494510289,1.82453442,86.865,86.795,0.86358159]
[1772494510290,1.82453442,86.859,86.822,1.83758366]
[1772494510684,1.82453442,86.849,86.822,1.83758366]
[1772494510909,13.33890435,86.848,86.822,1.83758366]
[1772494511507,13.33890435,86.848,86.82,22.43453704]
[1772494511508,11.51436993,86.848,86.824,1.83758366]
[1772494511907,1.82453442,86.862,86.831,1.83758366]
[1772494512103,1.82453442,86.861,86.831,1.83758366]
[1772494512701,1.43909739,86.86,86.831,1.83758366]
[1772494513008,13.33744615,86.859,86.831,1.83758366]
[1772494513205,1.43913053,86.858,86.831,1.83758366]
[1772494513589,1.43913053,86.858,86.813,1.83758366]
[1772494513590,1.82453442,86.849,86.813,1.83758366]
[1772494513909,1.82453442,86.849,86.813,13.3565747]
[1772494514411,1.82453442,86.849,86.814,1.83758366]
[1772494515409,1.82453442,86.847,86.814,1.83758366]
[1772494515798,1.82453442,86.847,86.816,1.83758366]
[1772494516186,11.51436993,86.848,86.821,1.83758366]
[1772494517111,11.51382391,86.853,86.831,1.85228546]
[1772494517312,10.91646858,86.86,86.833,1.85228546]
[1772494517495,1.43911396,86.859,86.833,1.85228546]
[1772494517812,1.95043876,86.86,86.833,1.85228546]
[1772494519491,11.51291173,86.859,86.835,1.90718687]
[1772494522219,1.87719259,86.859,86.831,1.90718687]
[1772494522915,1.87719259,86.859,86.831,13.42381111]
[1772494523098,1.87719259,86.859,86.831,1.90718687]
[1772494523298,1.87719259,86.849,86.812,1.90718687]
[1772494523648,1.87719259,86.847,86.812,1.90718687]
[1772494523801,1.87719259,86.847,86.81,10.91646858]
[1772494523802,1.87719259,86.845,86.803,1.90718687]
[1772494524119,1.87719259,86.839,86.803,1.90718687]
[1772494524310,1.87719259,86.837,86.804,11.52020644]
[1772494524509,1.87719259,86.837,86.804,13.42739331]
[1772494524908,1.87719259,86.837,86.805,1.90718687]
[1772494526518,1.87719259,86.837,86.81,10.91646858]
[1772494526701,1.87719259,86.837,86.811,1.90718687]
[1772494526901,1.43931281,86.847,86.811,1.90718687]
[1772494527113,1.87719259,86.846,86.811,1.90718687]
[1772494527315,1.87719259,86.844,86.811,1.90718687]
[1772494527622,1.87719259,86.842,86.811,1.90718687]
[1772494527922,1.87719259,86.84,86.811,1.90718687]
[1772494528825,11.51556328,86.839,86.812,11.51914481]
[1772494529121,11.51556328,86.839,86.812,13.42633168]
[1772494529301,11.51556328,86.839,86.813,1.90718687]
[1772494531923,1.87719259,86.838,86.813,1.90718687]
[1772494532607,11.5158285,86.837,86.805,11.52006434]
[1772494532929,11.5158285,86.837,86.791,11.52193199]
[1772494532930,1.87719259,86.829,86.791,11.52193199]
[1772494533118,1.87719259,86.829,86.792,1.90718687]
[1772494534825,1.87719259,86.819,86.792,1.90718687]
[1772494535029,1.87719259,86.819,86.79,0.1]
[1772494535831,1.87719259,86.819,86.791,13.42911886]
[1772494537506,1.87719259,86.842,86.811,1.90718687]
[1772494537726,1.87719259,86.842,86.81,10.91646858]
[1772494537727,1.87719259,86.84,86.81,10.91646858]
[1772494538032,1.87719259,86.838,86.8,10.91646858]
[1772494538327,1.87719259,86.836,86.8,10.91646858]
[1772494538653,1.87719259,86.834,86.8,10.91646858]
[1772494538831,1.87719259,86.829,86.79,11.01646858]
[1772494539015,1.87719259,86.827,86.79,11.01646858]
[1772494539336,1.87719259,86.825,86.79,11.01646858]
[1772494539513,1.87719259,86.822,86.791,11.52193199]
[1772494539713,1.87719259,86.822,86.792,1.90718687]
[1772494541830,1.87719259,86.827,86.794,1.90718687]
[1772494542017,1.87719259,86.826,86.794,1.90718687]
[1772494542625,1.43967751,86.825,86.794,1.90718687]
[1772494543125,1.87719259,86.824,86.793,11.52166649]
[1772494543323,1.87719259,86.822,86.793,11.52166649]
[1772494543831,1.43964435,86.827,86.793,11.52166649]
[1772494543832,1.87719259,86.82,86.793,11.52166649]
[1772494544315,1.87719259,86.82,86.794,1.90718687]
[1772494545131,1.87719259,86.82,86.796,1.90718687]
[1772494546036,1.87719259,86.818,86.796,1.90718687]
[1772494547134,13.39567399,86.817,86.796,1.90718687]
[1772494547337,1.87719259,86.817,86.796,1.90718687]
[1772494547841,1.87719259,86.817,86.797,13.48451808]
[1772494549237,10.91646858,86.83,86.79,11.01646858]
[1772494549238,1.91918025,86.809,86.79,0.1]
[1772494552019,1.91918025,86.816,86.79,2.06338256]
[1772494552218,1.91918025,86.816,86.791,1.96338256]
[1772494552419,13.43782033,86.816,86.791,1.96338256]
[1772494553115,1.91918025,86.816,86.791,1.96338256]
[1772494553319,1.43961118,86.829,86.791,1.96338256]
[1772494553320,11.51807577,86.821,86.791,1.96338256]
[1772494553726,11.51702215,86.828,86.801,1.96338256]
[1772494554038,1.43964435,86.827,86.801,1.96338256]
[1772494554535,11.51675904,86.83,86.802,1.96338256]
[1772494555442,1.91918025,86.855,86.821,1.96338256]
[1772494555818,0.575998,86.854,86.821,1.96338256]
[1772494556140,1.91918025,86.868,86.84,6.04104006]
[1772494556348,0.575998,86.867,86.841,1.96338256]
[1772494556528,0.575998,86.867,86.84,4.0776575]
[1772494556529,1.91918025,86.889,86.858,1.96338256]
[1772494556728,1.91918025,86.889,86.85,6.04104006]
[1772494557043,1.91918025,86.889,86.851,13.47735476]
[1772494557424,1.91918025,86.889,86.852,1.96338256]
[1772494557634,1.91918025,86.879,86.845,1.96338256]
[1772494559143,11.50867178,86.891,86.861,1.96338256]
[1772494559318,1.91918025,86.889,86.853,1.96338256]
[1772494560735,11.50906914,86.888,86.861,1.96338256]
[1772494560936,13.42824939,86.888,86.861,1.96338256]
[1772494563432,11.50906914,86.888,86.863,1.96338256]
[1772494565029,1.91918025,86.894,86.863,1.96338256]
[1772494567745,1.91918025,86.892,86.863,1.96338256]
[1772494568335,1.91918025,86.892,86.846,28.78638215]
[1772494568336,1.91918025,86.869,86.836,1.96338256]
[1772494570143,11.51171892,86.868,86.836,1.96338256]
[1772494570323,1.91918025,86.867,86.836,1.96338256]
[1772494571743,1.91918025,86.867,86.836,13.47921137]
[1772494571950,1.91918025,86.867,86.836,1.96338256]
[1772494572633,1.91918025,86.865,86.837,13.47921106]
[1772494573636,1.91918025,86.865,86.837,1.96338256]